bitfinex/quotes_SOLUSD_20251212
["timestamp","ask_amount","ask_price","bid_price","bid_amount"]
[1765557379469,75.0,132.68,132.65,7.60842897]
[1765557379653,75.0,132.68,132.63,0.69]
[1765557379973,75.66,132.68,132.65,7.60842897]
[1765557381384,75.66,132.68,132.66,7.53789144]
[1765557381685,75.66,132.68,132.66,7.53803779]
[1765557382468,75.0,132.68,132.64,18.84788819]
[1765557382668,75.0,132.68,132.63,7.60842897]
[1765557382669,75.68,132.67,132.63,7.60842897]
[1765557383085,0.68,132.66,132.64,15.14722861]
[1765557383287,75.0,132.68,132.65,7.53816726]
[1765557383585,0.68,132.67,132.65,7.53816726]
[1765557383992,75.0,132.68,132.65,15.14659623]
[1765557384191,75.0,132.7,132.67,7.60842897]
[1765557384564,75.71,132.7,132.67,7.60842897]
[1765557385373,75.71,132.7,132.67,15.14566658]
[1765557387187,75.71,132.7,132.68,7.60842897]
[1765557387372,75.71,132.7,132.67,15.14566658]
[1765557387576,0.71,132.69,132.66,7.53785983]
[1765557388168,75.0,132.7,132.67,7.53736029]
[1765557388373,75.71,132.7,132.67,15.14578926]
[1765557388878,75.71,132.73,132.67,7.53736029]
[1765557389081,75.0,132.71,132.67,26.38110793]
[1765557389284,0.71,132.7,132.67,26.38110793]
[1765557389516,0.71,132.7,132.67,7.53736029]
[1765557390098,0.71,132.7,132.66,7.53799832]
[1765557390099,8.80994492,132.69,132.66,7.53799832]
[1765557390301,83.80994492,132.69,132.66,7.53799832]
[1765557390581,75.71,132.69,132.67,7.53745046]
[1765557390997,13.0470912,132.7,132.67,15.14587943]
[1765557391176,0.71,132.7,132.67,15.14587943]
[1765557391987,0.71,132.7,132.67,7.53745046]
[1765557392187,83.80994492,132.69,132.65,7.53809254]
[1765557392387,8.26,132.71,132.68,7.60842897]
[1765557392586,8.26,132.71,132.69,7.60842897]
[1765557392906,0.71,132.73,132.7,15.14422399]
[1765557393107,0.81,132.75,132.72,7.60842897]
[1765557393410,0.71,132.74,132.72,7.60842897]
[1765557394287,0.71,132.74,132.7,26.37528258]
[1765557394481,0.71,132.74,132.71,7.60842897]
[1765557394908,0.71,132.74,132.71,15.14354653]
[1765557395485,83.80994492,132.73,132.68,18.84209693]
[1765557395801,83.80994492,132.71,132.68,7.53681766]
[1765557396001,83.80994492,132.71,132.68,15.14524663]
[1765557396200,84.51994492,132.71,132.68,15.14524663]
[1765557396401,0.71,132.71,132.69,7.60842897]
[1765557396896,0.71,132.71,132.67,26.38124669]
[1765557397112,0.71,132.71,132.67,27.03124669]
[1765557397315,0.71,132.71,132.67,26.38124669]
[1765557397519,0.71,132.71,132.68,7.60842897]
[1765557397892,8.80994492,132.7,132.67,7.60842897]
[1765557398090,75.0,132.69,132.65,15.14691784]
[1765557398315,75.71,132.69,132.65,15.14691784]
[1765557398488,75.0,132.69,132.66,7.53802216]
[1765557398688,0.71,132.68,132.66,7.53802216]
[1765557398921,75.0,132.69,132.67,7.60842897]
[1765557399125,13.0470912,132.7,132.67,7.60842897]
[1765557399335,13.7570912,132.7,132.67,7.60842897]
[1765557399534,84.51994492,132.69,132.65,15.14706447]
[1765557400032,83.80994492,132.67,132.63,7.60842897]
[1765557400231,96.85703612,132.67,132.6,0.65]
[1765557400403,75.0,132.65,132.61,7.60842897]
[1765557400603,8.80994492,132.64,132.6,15.14985068]
[1765557400823,8.80994492,132.64,132.56,8.24]
[1765557400824,75.0,132.63,132.59,7.60842897]
[1765557400994,75.71,132.63,132.59,7.60842897]
[1765557401331,0.71,132.62,132.57,27.05054823]
[1765557401624,0.71,132.62,132.59,7.60842897]
[1765557401807,0.71,132.65,132.61,7.60842897]
[1765557402016,0.71,132.65,132.63,7.60842897]
[1765557402207,13.0470912,132.67,132.64,7.60842897]
[1765557402395,13.0470912,132.67,132.65,7.60842897]
[1765557402597,13.7570912,132.67,132.64,7.60842897]
[1765557402998,13.7570912,132.67,132.64,15.14750447]
[1765557403225,13.7570912,132.67,132.64,7.5390755]
[1765557403533,75.71,132.7,132.66,7.60842897]
[1765557403895,0.71,132.69,132.65,7.60842897]
[1765557404326,0.71,132.69,132.65,0.65]
[1765557404549,0.71,132.69,132.65,7.60842897]
[1765557404722,0.71,132.69,132.66,7.60842897]
[1765557404910,0.71,132.69,132.67,7.60842897]
[1765557405238,0.71,132.69,132.67,15.14590397]
[1765557406025,0.71,132.69,132.67,7.537475]
[1765557406232,0.71,132.69,132.66,7.53797607]
[1765557406803,0.71,132.69,132.67,7.53741557]
[1765557407022,0.71,132.69,132.66,7.53786165]
[1765557407604,0.71,132.69,132.66,15.14629062]
[1765557408145,0.71,132.69,132.66,7.53786165]
[1765557408712,0.71,132.69,132.66,15.14629062]
[1765557408932,104.3,132.68,132.65,7.53845051]
[1765557409133,179.3,132.68,132.62,7.60842897]
[1765557409338,8.24749905,132.67,132.63,7.53974633]
[1765557409517,90.85592802,132.67,132.62,7.54014243]
[1765557409715,0.71,132.66,132.62,15.1485714]
[1765557410923,0.71,132.66,132.62,33.99942345]
[1765557411232,215.75260492,132.68,132.62,33.99942345]
[1765557411233,201.2870912,132.68,132.63,7.60842897]
[1765557411433,201.2870912,132.68,132.64,7.60842897]
[1765557411639,126.2870912,132.68,132.64,7.60842897]
[1765557411845,0.68,132.67,132.64,7.60842897]
[1765557412024,125.6070912,132.68,132.64,7.60842897]
[1765557412232,125.6070912,132.68,132.64,8.30842897]
[1765557412233,126.2870912,132.68,132.64,8.30842897]
[1765557412646,126.2870912,132.68,132.64,15.14718568]
[1765557412843,0.68,132.67,132.64,15.14718568]
[1765557413344,125.6070912,132.68,132.64,15.14718568]
[1765557413556,0.68,132.67,132.64,15.14718568]
[1765557414363,75.68,132.67,132.62,7.60842897]
[1765557414584,75.68,132.67,132.62,15.14829054]
[1765557414857,104.98,132.66,132.62,15.14829054]
[1765557415043,104.98,132.66,132.62,7.53986157]
[1765557415240,104.98,132.66,132.62,34.69914259]
[1765557415439,104.98,132.66,132.62,27.09071362]
[1765557415636,104.98,132.66,132.62,34.69914259]
[1765557415838,104.98,132.66,132.63,7.60842897]
[1765557416038,104.98,132.66,132.63,7.60480829]
[1765557416242,21.3070912,132.68,132.64,8.30480829]
[1765557416442,13.0470912,132.68,132.65,7.60480829]
[1765557416649,75.0,132.69,132.66,7.60480829]
[1765557416840,0.68,132.68,132.65,7.53810338]
[1765557417259,0.68,132.68,132.66,7.53795877]
[1765557417937,0.68,132.68,132.65,15.14322002]
[1765557418131,0.68,132.68,132.65,7.53841173]
[1765557418861,13.0470912,132.66,132.61,8.24]
[1765557419070,13.0470912,132.66,132.62,15.14460754]
[1765557419236,0.68,132.65,132.62,7.53979925]
[1765557419444,0.68,132.65,132.63,7.53964557]
[1765557420165,13.0470912,132.66,132.63,7.53956366]
[1765557420349,13.7270912,132.66,132.63,7.53956366]
[1765557420962,13.0470912,132.68,132.64,0.7]
[1765557421170,21.33189949,132.68,132.63,0.7]
[1765557421334,0.68,132.68,132.63,0.7]
[1765557421730,7.60480829,132.67,132.62,26.39119287]
[1765557421960,7.60480829,132.66,132.62,7.54034082]
[1765557422130,7.60480829,132.64,132.58,18.85572658]
[1765557422338,7.60480829,132.64,132.57,7.54278194]
[1765557422339,7.60480829,132.6,132.57,7.54278194]
[1765557422543,7.60480829,132.6,132.56,7.54369716]
[1765557422544,7.60480829,132.59,132.56,7.54369716]
[1765557422756,82.54189072,132.6,132.55,7.54432289]
[1765557423074,8.28480829,132.6,132.55,7.54432289]
[1765557423280,92.06994492,132.63,132.56,8.30480829]
[1765557423481,92.06994492,132.63,132.56,0.98432314]
[1765557423482,13.0470912,132.63,132.56,0.98432314]
[1765557423772,21.33189949,132.63,132.57,8.30480829]
[1765557423979,13.7270912,132.63,132.57,8.30480829]
[1765557424190,7.60480829,132.62,132.57,0.7]
[1765557424372,158.26,132.62,132.57,8.30480829]
[1765557424678,7.60480829,132.6,132.55,26.40513013]
[1765557424839,7.60480829,132.6,132.55,27.10513013]
[1765557425034,8.28480829,132.6,132.55,27.10513013]
[1765557425238,7.60480829,132.61,132.56,0.7]
[1765557425464,16.54480829,132.62,132.56,8.30480829]
[1765557425635,8.94,132.62,132.57,7.60480829]
[1765557425839,8.94,132.62,132.57,12.36827413]
[1765557426046,8.94,132.62,132.57,13.06827413]
[1765557426239,0.68,132.61,132.57,13.06827413]
[1765557426659,0.68,132.61,132.57,0.7]
[1765557426975,20.62827413,132.62,132.58,7.54261577]
[1765557427171,13.0470912,132.63,132.58,8.24261577]
[1765557427339,0.68,132.63,132.59,0.7]
[1765557428039,13.04827413,132.63,132.58,26.39915521]
[1765557428353,87.36827413,132.64,132.59,0.7]
[1765557428540,75.68,132.64,132.59,0.7]
[1765557428742,0.68,132.63,132.59,0.7]
[1765557429160,0.68,132.63,132.6,7.54147812]
[1765557429401,25.41536533,132.61,132.53,0.7]
[1765557429675,13.04827413,132.6,132.57,7.54310312]
[1765557429988,12.36827413,132.59,132.54,0.7]
[1765557430276,0.68,132.59,132.56,7.54369342]
[1765557430457,13.04827413,132.59,132.55,7.54415259]
[1765557431072,0.68,132.59,132.55,7.54415259]
[1765557431271,13.04827413,132.59,132.55,7.54415259]
[1765557431778,150.0,132.64,132.56,13.06827413]
[1765557431957,75.0,132.64,132.58,12.36827413]
[1765557432155,87.36827413,132.66,132.6,12.36827413]
[1765557432355,75.68,132.66,132.61,12.36827413]
[1765557432555,150.68,132.66,132.61,13.06827413]
[1765557432869,0.68,132.65,132.57,9.09426806]
[1765557433064,87.36827413,132.62,132.56,8.94]
[1765557433370,87.36827413,132.62,132.57,7.54318473]
[1765557433573,88.04827413,132.62,132.57,7.54318473]
[1765557433755,0.68,132.61,132.57,7.54318473]
[1765557433958,87.36827413,132.6,132.56,8.24]
[1765557434272,84.48994492,132.61,132.56,7.54354362]
[1765557434470,87.36827413,132.61,132.56,8.24354362]
[1765557434667,0.68,132.6,132.56,8.24354362]
[1765557435366,0.68,132.6,132.56,27.10292804]
[1765557435677,13.04827413,132.6,132.56,7.54354362]
[1765557435862,8.22148938,132.6,132.56,7.54354362]
[1765557436067,0.68,132.59,132.56,7.54354362]
[1765557436758,12.36827413,132.6,132.56,7.54354362]
[1765557436962,8.94,132.63,132.57,13.06827413]
[1765557437258,21.30827413,132.63,132.57,13.06827413]
[1765557437469,28.8481202,132.63,132.58,7.54261577]
[1765557437659,8.94,132.63,132.58,26.39915521]
[1765557437860,0.68,132.63,132.59,0.69]
[1765557438059,0.68,132.63,132.59,13.05827413]
[1765557439250,33.66407858,132.65,132.59,13.05827413]
[1765557439587,13.07827413,132.64,132.6,7.54147812]
[1765557439772,13.07827413,132.64,132.59,0.69]
[1765557439773,12.36827413,132.63,132.59,7.5418532]
[1765557440081,87.36827413,132.64,132.59,8.2218532]
[1765557440276,75.69,132.64,132.59,20.59012733]
[1765557440474,75.0,132.64,132.59,20.59012733]
[1765557440776,0.69,132.63,132.59,20.59012733]
[1765557440948,13.0470912,132.65,132.61,12.36827413]
[1765557441152,75.0,132.68,132.63,12.36827413]
[1765557441153,0.69,132.68,132.63,12.36827413]
[1765557441475,0.69,132.68,132.65,7.5386355]
[1765557442266,8.26,132.7,132.65,27.06522426]
[1765557442467,8.95,132.7,132.65,39.43349839]
[1765557442880,0.69,132.69,132.65,39.43349839]
[1765557443179,150.69,132.69,132.61,9.06216157]
[1765557443350,87.36827413,132.67,132.61,21.28827413]
[1765557443554,12.36827413,132.65,132.61,15.78075734]
[1765557443755,75.0,132.65,132.61,7.54075734]
[1765557443980,0.69,132.64,132.61,7.54075734]
[1765557444481,0.69,132.64,132.6,7.54132573]
[1765557444652,87.36827413,132.63,132.57,20.60827413]
[1765557445075,88.05827413,132.63,132.57,20.60827413]
[1765557445579,83.22983335,132.63,132.58,7.54261577]
[1765557446076,0.69,132.62,132.58,7.54261577]
[1765557446278,87.36827413,132.61,132.57,15.78296163]
[1765557446477,12.36827413,132.6,132.56,7.54334456]
[1765557446690,0.69,132.59,132.56,7.54334456]
[1765557447358,88.05827413,132.59,132.55,7.54413471]
[1765557447561,75.69,132.59,132.55,7.54413471]
[1765557448666,83.23206945,132.59,132.55,7.54413471]
[1765557449164,75.69,132.63,132.56,26.37968847]
[1765557449479,88.05827413,132.63,132.57,12.36827413]
[1765557449781,87.36827413,132.61,132.57,7.54318473]
[1765557450166,0.69,132.6,132.56,7.54357143]
[1765557450464,87.36827413,132.58,132.53,8.24]
[1765557450663,12.36827413,132.57,132.53,8.24]
[1765557450980,13.05827413,132.57,132.53,15.78500605]
[1765557451285,13.05827413,132.57,132.53,16.46528449]
[1765557451286,0.69,132.57,132.53,16.46528449]
[1765557451578,0.69,132.57,132.53,0.68]
[1765557451789,21.28030889,132.57,132.53,7.54524199]
[1765557452119,12.36827413,132.54,132.51,0.1]
[1765557452382,25.41536533,132.52,132.51,0.1]
[1765557452558,75.69,132.54,132.51,0.1]
[1765557452873,0.69,132.54,132.51,0.1]
[1765557453585,184.22531025,132.52,132.51,0.1]
[1765557453766,184.22531025,132.52,132.48,0.1]
[1765557453767,87.36827413,132.5,132.48,0.1]
[1765557453960,12.36827413,132.5,132.48,0.1]
[1765557454159,13.05827413,132.51,132.48,0.1]
[1765557454585,88.05827413,132.5,132.48,0.1]
[1765557455074,21.86821905,132.49,132.48,0.1]
[1765557455381,13.7370912,132.49,132.48,0.1]
[1765557456466,34.9390928,132.49,132.48,0.1]
[1765557457295,29.72406419,132.49,132.48,0.1]
[1765557457468,17.33200751,132.49,132.48,0.1]
[1765557457669,29.72406419,132.49,132.48,0.1]
[1765557458792,29.72406419,132.49,132.47,0.1]
[1765557458793,158.95210649,132.48,132.47,0.1]
[1765557458973,172.14135926,132.46,132.45,0.1]
[1765557459297,158.80994492,132.42,132.41,0.2]
[1765557459632,158.80994492,132.42,132.38,0.2]
[1765557459633,163.0470912,132.4,132.38,0.2]
[1765557459766,28.75544219,132.39,132.38,0.2]
[1765557460086,12.39205668,132.39,132.38,0.2]
[1765557460873,13.08205668,132.39,132.38,0.2]
[1765557461067,0.69,132.39,132.38,0.2]
[1765557461279,163.0470912,132.4,132.38,0.2]
[1765557461574,12.39205668,132.39,132.38,0.2]
[1765557461767,13.08205668,132.39,132.38,0.2]
[1765557461970,0.69,132.39,132.38,0.2]
[1765557462183,12.39205668,132.39,132.38,0.2]
[1765557462390,13.08205668,132.39,132.38,0.2]
[1765557462694,163.0470912,132.4,132.38,0.2]
[1765557462894,88.0470912,132.4,132.38,0.2]
[1765557463095,12.39205668,132.39,132.38,0.2]
[1765557463881,20.63549727,132.39,132.38,0.2]
[1765557464189,13.08205668,132.39,132.38,0.2]
[1765557464501,21.8920016,132.39,132.38,0.2]
[1765557465199,9.78426806,132.39,132.38,0.2]
[1765557465372,22.17632474,132.39,132.38,0.2]
[1765557465876,42.49253339,132.39,132.38,0.2]
[1765557467610,42.77685653,132.39,132.38,0.2]
[1765557467900,37.38650465,132.39,132.38,0.2]
[1765557468100,49.77856133,132.39,132.38,0.2]
[1765557468681,158.80994492,132.34,132.33,0.1]
[1765557468886,192.5290928,132.34,132.33,0.1]
[1765557469079,193.2190928,132.34,132.33,0.1]
[1765557469613,193.2190928,132.34,132.22,0.68]
[1765557469614,75.0,132.3,132.22,0.68]
[1765557469808,9.09426806,132.33,132.22,0.68]
[1765557469809,150.0,132.26,132.22,0.68]
[1765557469987,75.0,132.26,132.22,0.68]
[1765557470178,163.09205668,132.26,132.2,0.69]
[1765557470373,12.39205668,132.22,132.16,0.69]
[1765557470576,12.39205668,132.18,132.16,0.69]
[1765557470886,87.39205668,132.19,132.14,4.27852795]
[1765557471084,75.0,132.2,132.16,7.5665629]
[1765557471313,75.0,132.19,132.15,8.25711758]
[1765557471628,7.5665629,132.23,132.18,12.39205668]
[1765557471792,75.0,132.28,132.22,12.39205668]
[1765557471984,75.0,132.27,132.26,12.39205668]
[1765557472223,96.37205668,132.27,132.18,0.69]
[1765557472428,163.0470912,132.24,132.19,12.39205668]
[1765557472593,163.0470912,132.24,132.2,12.39205668]
[1765557472789,163.0470912,132.24,132.21,12.39205668]
[1765557472790,170.60910737,132.24,132.21,12.39205668]
[1765557473089,170.60910737,132.24,132.19,7.56445906]
[1765557473292,163.0470912,132.22,132.19,8.25442212]
[1765557473522,150.0,132.22,132.2,7.56406231]
[1765557473824,150.0,132.22,132.17,0.69]
[1765557474121,150.7,132.22,132.17,13.08205668]
[1765557474421,150.0,132.22,132.19,12.39205668]
[1765557474662,150.0,132.22,132.18,0.69]
[1765557474924,150.0,132.22,132.14,3.58852795]
[1765557474925,75.0,132.2,132.15,20.64921521]
[1765557475094,0.7,132.21,132.14,3.58852795]
[1765557475095,75.0,132.18,132.14,3.58852795]
[1765557475492,150.0,132.18,132.14,3.58852795]
[1765557475697,150.0,132.18,132.15,0.69]
[1765557475990,150.0,132.18,132.14,11.15624187]
[1765557476297,150.0,132.18,132.14,16.67058463]
[1765557476497,150.0,132.18,132.14,11.84606843]
[1765557476697,150.0,132.18,132.14,16.67058463]
[1765557476897,150.0,132.16,132.14,3.58852795]
[1765557477298,75.0,132.16,132.14,3.58852795]
[1765557477624,13.0470912,132.17,132.14,16.67058463]
[1765557477915,75.0,132.18,132.15,0.69]
[1765557478122,150.0,132.18,132.15,0.69]
[1765557478293,150.0,132.18,132.15,12.39205668]
[1765557478711,150.0,132.18,132.14,11.15593386]
[1765557478929,75.0,132.18,132.15,12.39205668]
[1765557479131,21.3270912,132.19,132.15,0.69]
[1765557479314,150.0,132.17,132.14,3.58852795]
[1765557479622,37.70240705,132.19,132.15,0.69]
[1765557479623,171.3270912,132.19,132.15,0.69]
[1765557479824,75.0,132.17,132.14,3.58852795]
[1765557480132,75.0,132.17,132.15,12.39205668]
[1765557480331,75.0,132.17,132.14,3.58852795]
[1765557480332,75.0,132.16,132.14,3.58852795]
[1765557480535,75.0,132.18,132.15,13.08205668]
[1765557480714,82.56419998,132.21,132.16,0.69]
[1765557480902,75.0,132.21,132.18,12.39205668]
[1765557481106,83.28,132.22,132.16,27.17282644]
[1765557481324,8.28,132.22,132.21,12.39205668]
[1765557481635,150.0,132.23,132.17,0.69]
[1765557481816,174.65176712,132.25,132.21,12.39205668]
[1765557482019,0.5,132.26,132.24,12.39205668]
[1765557482211,7.55986573,132.28,132.25,12.39205668]
[1765557482540,75.0,132.26,132.23,12.39205668]
[1765557482738,75.0,132.26,132.24,12.39205668]
[1765557482939,8.28,132.27,132.25,12.39205668]
[1765557483151,15.84034863,132.27,132.23,7.56256226]
[1765557483452,8.28,132.27,132.25,12.39205668]
[1765557483814,8.28,132.27,132.26,12.39205668]
[1765557484023,150.0,132.26,132.22,0.69]
[1765557484231,150.5,132.26,132.22,12.39205668]
[1765557484460,9.50994492,132.25,132.14,3.58852795]
[1765557484738,75.0,132.2,132.15,13.08205668]
[1765557484937,75.0,132.22,132.18,12.39205668]
[1765557485236,75.0,132.22,132.16,26.48290158]
[1765557485237,75.0,132.21,132.16,0.69]
[1765557485419,75.0,132.21,132.16,20.64854413]
[1765557485625,82.56324035,132.22,132.18,12.39205668]
[1765557485626,75.0,132.22,132.18,12.39205668]
[1765557485832,88.0470912,132.23,132.17,0.69]
[1765557486031,13.0470912,132.23,132.2,7.65473039]
[1765557486231,83.28,132.24,132.2,7.65473039]
[1765557486430,8.28,132.24,132.22,7.65473039]
[1765557486642,0.5,132.26,132.23,7.65473039]
[1765557486842,0.5,132.26,132.22,7.56315232]
[1765557487024,8.06100609,132.26,132.21,8.25360768]
[1765557487547,0.5,132.26,132.23,7.65473039]
[1765557487924,0.5,132.26,132.23,8.34473039]
[1765557488232,75.0,132.25,132.21,7.65473039]
[1765557488438,75.0,132.25,132.21,8.34473039]
[1765557488813,75.0,132.25,132.22,8.34473039]
[1765557489138,83.06091877,132.26,132.22,8.34473039]
[1765557489350,83.06091877,132.26,132.22,0.69]
[1765557489560,83.06091877,132.26,132.15,0.69]
[1765557489561,163.0470912,132.2,132.15,0.69]
[1765557489717,8.28,132.19,132.15,0.69]
[1765557490538,8.28,132.19,132.14,3.58852795]
[1765557490539,150.0,132.18,132.14,3.58852795]
[1765557490944,7.56601346,132.17,132.14,3.58852795]
[1765557491143,7.56601346,132.17,132.14,4.27852795]
[1765557491644,20.61310466,132.17,132.14,3.58852795]
[1765557491940,75.0,132.16,132.14,3.58852795]
[1765557492238,75.0,132.18,132.14,3.58852795]
[1765557492239,163.0470912,132.18,132.15,0.69]
[1765557492422,170.61264909,132.18,132.14,11.84612226]
[1765557492629,13.0470912,132.18,132.14,19.50085265]
[1765557492832,15.84497808,132.19,132.15,0.69]
[1765557493030,75.0,132.17,132.14,3.58852795]
[1765557493230,75.0,132.18,132.14,4.27852795]
[1765557493828,75.0,132.18,132.15,0.69]
[1765557494137,83.28,132.19,132.15,0.69]
[1765557494138,8.28,132.19,132.15,8.25711254]
[1765557494445,8.28,132.19,132.16,0.69]
[1765557494951,8.28,132.19,132.17,7.56601346]
[1765557495241,8.28,132.19,132.17,8.25601346]
[1765557496018,82.56434117,132.2,132.15,0.69]
[1765557496225,75.0,132.19,132.15,0.69]
[1765557496418,75.0,132.19,132.15,8.34473039]
[1765557496640,75.0,132.19,132.16,7.56635063]
[1765557496846,75.0,132.19,132.15,0.69]
[1765557497146,82.56529749,132.19,132.14,11.15614199]
[1765557497322,83.26529749,132.19,132.14,18.81087238]
[1765557497522,88.0470912,132.16,132.14,3.58852795]
[1765557497737,13.0470912,132.16,132.14,3.58852795]
[1765557497925,88.0470912,132.16,132.14,3.58852795]
[1765557498125,88.7470912,132.16,132.14,3.58852795]
[1765557498455,75.7,132.15,132.14,3.58852795]
[1765557498754,75.7,132.15,132.03,0.99999999]
[1765557498755,92.17481012,132.15,132.03,0.99999999]
[1765557498935,82.6648652,132.06,132.0,8.67563573]
[1765557499139,75.0,132.04,132.0,8.67563573]
[1765557499564,75.0,132.04,132.0,9.34563573]
[1765557499977,75.0,132.02,132.0,1.1]
[1765557500262,75.0,132.1,132.01,0.69]
[1765557500469,75.0,132.08,132.05,7.6648652]
[1765557500631,75.0,132.08,132.01,0.69]
[1765557500951,96.3470912,132.1,132.06,7.57231561]
[1765557501153,96.3470912,132.1,132.0,38.97878787]
[1765557501154,75.0,132.08,132.0,38.97878787]
[1765557501375,75.0,132.06,132.02,7.6648652]
[1765557501525,150.0,132.08,132.04,7.6648652]
[1765557501731,88.0470912,132.1,132.05,7.57266681]
[1765557501950,75.0,132.15,132.09,7.6648652]
[1765557502251,103.27836526,132.17,132.06,9.25432314]
[1765557502438,13.0470912,132.14,132.09,7.6648652]
[1765557502643,75.0,132.15,132.1,0.69]
[1765557502943,157.56839258,132.13,132.1,7.6648652]
[1765557503142,157.56839258,132.13,132.07,8.26149028]
[1765557503347,75.0,132.11,132.06,0.69]
[1765557503531,150.0,132.11,132.08,7.6648652]
[1765557503734,75.0,132.11,132.07,7.57158784]
[1765557503939,150.0,132.11,132.08,7.6648652]
[1765557504152,150.0,132.11,132.07,7.57159449]
[1765557504333,75.0,132.09,132.04,8.26295344]
[1765557504712,163.7370912,132.11,132.07,7.6648652]
[1765557504962,28.9149175,132.14,132.08,8.26107858]
[1765557505166,157.6648652,132.13,132.05,18.93102606]
[1765557505340,75.0,132.11,132.08,7.6648652]
[1765557505546,103.9149175,132.14,132.1,7.6648652]
[1765557505855,150.0,132.12,132.09,7.6648652]
[1765557506055,150.0,132.12,132.07,0.69]
[1765557506263,150.69,132.12,132.08,7.6648652]
[1765557506434,0.69,132.11,132.05,8.26279673]
[1765557506761,150.0,132.12,132.06,0.69]
[1765557506925,75.0,132.12,132.06,0.69]
[1765557507130,7.56832107,132.13,132.07,7.57174225]
[1765557507330,8.25832107,132.13,132.07,7.57174225]
[1765557507554,75.0,132.1,132.05,7.57243662]
[1765557507750,75.0,132.1,132.07,7.6648652]
[1765557507954,75.0,132.1,132.08,7.6648652]
[1765557508156,75.0,132.1,132.06,0.69]
[1765557508331,75.0,132.08,131.98,8.28]
[1765557508548,150.0,132.11,132.07,7.6648652]
[1765557508762,178.91541227,132.13,132.09,7.6648652]
[1765557508969,170.61541227,132.13,132.09,7.6648652]
[1765557509172,7.56778396,132.14,132.09,8.260411]
[1765557509475,157.56723964,132.15,132.09,8.260411]
[1765557509685,165.23210484,132.15,132.09,8.260411]
[1765557509969,158.25730572,132.15,132.09,0.69]
[1765557510143,150.0,132.13,132.07,7.57165477]
[1765557510348,75.0,132.1,132.07,0.69]
[1765557510648,8.80994492,132.12,132.07,7.6648652]
[1765557510649,75.0,132.11,132.07,7.6648652]
[1765557510847,75.69,132.11,132.06,0.69]
[1765557511086,75.0,132.07,132.0,20.03933185]
[1765557511245,75.0,132.07,132.05,7.6648652]
[1765557511660,150.0,132.09,132.05,7.6648652]
[1765557511952,150.0,132.11,132.07,7.6648652]
[1765557512149,75.0,132.1,132.05,7.57237528]
[1765557512349,75.0,132.09,132.03,0.69]
[1765557512551,75.0,132.09,132.05,7.6648652]
[1765557512751,75.0,132.1,132.06,7.6648652]
[1765557512971,75.69,132.09,132.03,8.26389714]
[1765557513171,75.69,132.09,132.01,8.97]
[1765557513172,75.0,132.07,132.01,8.97]
[1765557513575,82.57116898,132.08,132.03,7.57390774]
[1765557513752,75.0,132.08,132.03,26.50899824]
[1765557513957,75.0,132.08,132.03,7.57390774]
[1765557514271,75.0,132.06,132.03,7.6648652]
[1765557514478,75.0,132.06,132.04,7.6648652]
[1765557514653,150.0,132.08,132.05,7.6648652]
[1765557514853,75.0,132.08,132.05,7.6648652]
[1765557515067,82.57129628,132.08,132.04,8.26324357]
[1765557515278,75.0,132.07,132.04,7.6648652]
[1765557515477,75.0,132.07,132.01,8.97]
[1765557515784,75.0,132.07,132.04,7.6648652]
[1765557516076,82.57129628,132.08,132.05,7.6648652]
[1765557516477,82.57129628,132.08,132.06,7.6648652]
[1765557516678,75.0,132.08,132.04,8.26337575]
[1765557516859,75.0,132.08,132.05,7.6648652]
[1765557517272,75.0,132.08,132.04,8.26338171]
[1765557517456,82.57124053,132.08,132.05,7.6648652]
[1765557517657,82.57124053,132.08,132.04,8.26338171]
[1765557517857,75.69,132.07,132.02,7.6648652]
[1765557518083,75.0,132.04,132.0,1.1]
[1765557518281,75.0,132.05,132.02,7.6648652]